bitfinex/quotes_BTCUSD_20240827
["timestamp","ask_amount","ask_price","bid_price","bid_amount"]
[1724797972150,0.005,59087.0,59063.0,0.03912]
[1724797972362,0.005,59087.0,59064.0,0.03824741]
[1724797972603,0.02651197,59089.0,59064.0,0.03824741]
[1724797972604,0.005,59082.0,59064.0,0.03824741]
[1724797972840,0.005,59085.0,59065.0,0.00338532]
[1724797973090,0.005,59088.0,59066.0,0.03912]
[1724797973750,0.02651197,59089.0,59066.0,0.03912]
[1724797973751,0.005,59087.0,59066.0,0.02612]
[1724797974645,0.007,59088.0,59066.0,1.52712]
[1724797974870,0.007,59088.0,59068.0,0.3931]
[1724797975105,0.007,59088.0,59070.0,0.3931]
[1724797975642,0.007,59088.0,59071.0,0.36494496]
[1724797975940,0.00089871,59087.0,59072.0,0.67876077]
[1724797976125,0.00012,59104.0,59082.0,0.5828]
[1724797976347,0.00012,59104.0,59081.0,0.465336]
[1724797976348,0.00012,59104.0,59085.0,0.1955]
[1724797976586,0.00012,59104.0,59092.0,0.465336]
[1724797976808,0.00012,59104.0,59093.0,0.89289114]
[1724797977063,0.00012,59104.0,59097.0,1.5]
[1724797977285,0.00012,59104.0,59099.0,0.3873]
[1724797977709,0.00012,59104.0,59100.0,0.0033831]
[1724797977944,0.00112,59104.0,59099.0,0.3873]
[1724797978182,0.00012,59104.0,59100.0,0.02612]
[1724797978461,0.00012,59104.0,59099.0,0.3873]
[1724797978462,0.00112,59104.0,59099.0,0.3873]
[1724797978883,0.00112,59104.0,59097.0,1.5]
[1724797978884,0.0058965,59135.0,59103.0,0.852636]
[1724797979113,0.0058965,59135.0,59104.0,0.26846077]
[1724797979348,0.01291331,59133.0,59105.0,0.3873]
[1724797979565,0.01291331,59133.0,59106.0,0.1]
[1724797979566,0.01291673,59133.0,59106.0,0.1]
[1724797979845,0.005,59131.0,59106.0,0.1]
[1724797980056,0.01291673,59133.0,59106.0,0.1]
[1724797980057,0.01291673,59133.0,59114.0,0.1955]
[1724797980287,0.01291673,59133.0,59115.0,0.65914253]
[1724797980515,0.0008965,59135.0,59116.0,0.3873]
[1724797980736,0.0008965,59135.0,59115.0,0.32504608]
[1724797980737,0.0008965,59135.0,59120.0,0.16846077]
[1724797980998,0.0008965,59135.0,59126.0,0.1905]
[1724797981208,0.0008965,59135.0,59125.0,1.5]
[1724797981209,0.0008965,59135.0,59127.0,0.6816416]
[1724797981425,0.003,59133.0,59129.0,0.4098]
[1724797981660,0.003,59133.0,59130.0,0.51318089]
[1724797981880,0.008998,59139.0,59131.0,0.4098]
[1724797982111,0.001,59134.0,59132.0,0.1]
[1724797982351,0.001,59134.0,59131.0,0.4098]
[1724797982572,0.001,59134.0,59124.0,0.3926]
[1724797982787,0.001,59134.0,59117.0,0.1972]
[1724797982788,0.005,59133.0,59117.0,0.1972]
[1724797983002,0.001,59134.0,59107.0,0.3926]
[1724797983003,0.005,59125.0,59107.0,0.3926]
[1724797983220,0.005,59121.0,59107.0,0.3926]
[1724797983435,0.005,59121.0,59101.0,0.3796]
[1724797983709,0.1,59131.0,59102.0,0.00338293]
[1724797983917,0.1,59131.0,59101.0,0.3796]
[1724797983918,0.005,59130.0,59101.0,0.3796]
[1724797984127,0.005,59127.0,59101.0,0.3796]
[1724797984546,0.1,59131.0,59101.0,0.3796]
[1724797984547,0.005,59113.0,59101.0,0.3796]
[1724797984756,0.023,59126.0,59101.0,0.3796]
[1724797984757,0.005,59121.0,59101.0,0.3796]
[1724797984994,0.005,59117.0,59101.0,0.3796]
[1724797985208,0.105,59131.0,59120.0,0.001]
[1724797985420,0.005,59127.0,59120.0,0.001]
[1724797985630,0.005,59125.0,59120.0,0.001]
[1724797985846,0.005,59123.0,59101.0,0.3796]
[1724797986056,0.005,59122.0,59106.0,0.50540786]
[1724797986202,0.005,59122.0,59101.0,0.3816]
[1724797986441,0.005,59124.0,59103.0,0.50540786]
[1724797986636,0.005,59124.0,59101.0,0.3796]
[1724797986841,0.105,59131.0,59103.0,0.50540786]
[1724797987087,0.001,59117.0,59104.0,0.00338243]
[1724797987298,0.001,59117.0,59105.0,0.00338229]
[1724797987531,0.1926,59133.0,59104.0,0.67696077]
[1724797987748,0.005,59124.0,59104.0,0.5085]
[1724797988175,0.005,59118.0,59104.0,0.4085]
[1724797988403,0.1,59132.0,59106.0,0.000815]
[1724797988404,0.005,59107.0,59106.0,0.000815]
[1724797988880,0.4219,59107.0,59106.0,0.000815]
[1724797989091,0.5219,59107.0,59106.0,0.000815]
[1724797989310,0.5219,59107.0,59070.0,0.582]
[1724797989311,0.005,59089.0,59070.0,0.582]
[1724797989532,0.3939,59088.0,59070.0,0.582]
[1724797989741,0.005,59082.0,59070.0,0.3927]
[1724797990218,0.005,59082.0,59062.0,0.1839]
[1724797990434,0.005,59082.0,59063.0,0.41649]
[1724797990435,0.1957,59081.0,59063.0,0.41649]
[1724797990875,0.00863824,59100.0,59063.0,0.41649]
[1724797990876,0.005,59090.0,59064.0,0.00338513]
[1724797991098,0.005,59091.0,59063.0,0.46789657]
[1724797991310,0.005,59092.0,59065.0,0.4041]
[1724797991553,0.005,59092.0,59064.0,0.04597741]
[1724797991554,0.1957,59099.0,59072.0,0.4041]
[1724797991555,0.005,59097.0,59072.0,0.4041]
[1724797991769,0.1,59102.0,59074.0,0.50540786]
[1724797991986,0.465336,59127.0,59074.0,0.50540786]
[1724797991987,0.001,59081.0,59075.0,0.7704446]
[1724797992205,0.001,59082.0,59077.0,0.1945]
[1724797992420,0.001,59082.0,59078.0,0.59556077]
[1724797992633,0.2007,59115.0,59079.0,0.4097]
[1724797992903,0.2007,59115.0,59081.0,0.4097]
[1724797992904,0.003,59097.0,59081.0,0.4097]
[1724797993142,0.003,59097.0,59082.0,0.1]
[1724797993390,0.1957,59115.0,59081.0,0.4097]
[1724797993391,0.005,59105.0,59083.0,0.003384]
[1724797993622,0.3939,59109.0,59081.0,0.4097]
[1724797993623,0.005,59104.0,59084.0,0.0431474]
[1724797993847,0.005,59101.0,59084.0,0.0431474]
[1724797994277,0.1957,59115.0,59084.0,0.0431474]
[1724797994278,0.005,59105.0,59095.0,0.4097]
[1724797994503,0.005,59131.0,59095.0,0.4097]
[1724797994504,0.001,59102.0,59096.0,0.19308336]
[1724797994743,0.001,59102.0,59097.0,0.02122001]
[1724797994957,0.1956965,59135.0,59099.0,0.5994]
[1724797994958,0.008,59104.0,59099.0,0.5994]
[1724797995213,0.008,59104.0,59098.0,1.69484326]
[1724797995214,0.0008965,59135.0,59101.0,0.4097]
[1724797995485,0.0008965,59135.0,59103.0,0.16846077]
[1724797995716,0.0008965,59135.0,59104.0,2.0528474]
[1724797995717,0.001,59105.0,59104.0,2.0528474]
[1724797995952,0.0008965,59135.0,59105.0,0.41308174]
[1724797996184,0.0008965,59135.0,59117.0,0.5994]
[1724797996410,0.0008965,59135.0,59121.0,0.16846077]
[1724797996627,0.0008965,59135.0,59128.0,1.5]
[1724797996883,0.0008965,59135.0,59129.0,0.5097]
[1724797997130,0.0008965,59135.0,59129.0,0.4097]
[1724797997364,0.0008965,59135.0,59122.0,0.21092001]
[1724797997607,0.0008965,59135.0,59122.0,0.62062001]
[1724797997843,0.0008965,59135.0,59123.0,0.0431474]
[1724797998096,0.0008965,59135.0,59128.0,0.012]
[1724797998325,0.0008965,59135.0,59129.0,0.014]
[1724797998592,0.0008965,59135.0,59130.0,0.00338172]
[1724797998832,0.0008965,59135.0,59130.0,0.4097]
[1724797999061,0.0008965,59135.0,59131.0,0.02122001]
[1724797999529,0.0008965,59135.0,59128.0,0.012]
[1724797999771,0.0008965,59135.0,59116.0,0.4097]
[1724797999772,0.0008965,59135.0,59117.0,0.50540786]
[1724798000000,0.0008965,59135.0,59123.0,0.4097]
[1724798000250,0.0008965,59135.0,59124.0,0.17184202]
[1724798000498,0.0008965,59135.0,59124.0,0.27184202]
[1724798000742,0.0008965,59135.0,59129.0,0.014]
[1724798001006,0.0008965,59135.0,59128.0,0.012]
[1724798001985,0.0008965,59135.0,59129.0,0.0033816]
[1724798002215,0.0008965,59135.0,59126.0,1.5]
[1724798002436,0.0008965,59135.0,59125.0,0.1897]
[1724798002437,0.0008965,59135.0,59128.0,0.014]
[1724798002703,0.0008965,59135.0,59129.0,0.43037]
[1724798002925,0.0008965,59135.0,59130.0,0.00338133]
[1724798003203,0.0008965,59135.0,59130.0,0.00338135]
[1724798003423,0.0008965,59135.0,59129.0,0.43037]
[1724798003638,0.0008965,59135.0,59130.0,0.00338078]
[1724798003863,0.0008965,59135.0,59131.0,0.21245818]
[1724798004081,0.00069297,59135.0,59131.0,0.04399741]
[1724798005250,0.00069297,59135.0,59131.0,0.014]
[1724798006376,0.1896,59134.0,59131.0,0.028]
[1724798006626,0.005,59132.0,59131.0,0.028]
[1724798006846,0.1896,59134.0,59111.0,0.50540786]
[1724798006847,0.005,59127.0,59111.0,0.50540786]
[1724798007075,0.3908,59126.0,59111.0,0.50540786]
[1724798007288,0.3958,59126.0,59111.0,0.50540786]
[1724798007506,0.3958,59126.0,59112.0,0.50540786]
[1724798007507,0.005,59126.0,59112.0,0.50540786]
[1724798007725,0.005,59126.0,59107.0,0.3875]
[1724798007950,0.1,59133.0,59113.0,0.0033823]
[1724798008173,0.00069297,59135.0,59108.0,0.20721077]
[1724798008425,0.00069297,59135.0,59131.0,2.0]
[1724798008652,0.00069297,59135.0,59132.0,0.00338159]
[1724798008893,0.00069297,59135.0,59131.0,2.0]
[1724798008894,0.00069297,59135.0,59133.0,0.02561741]
[1724798009783,0.00069297,59135.0,59134.0,0.00338131]
[1724798009784,0.00169297,59135.0,59134.0,0.00338131]
[1724798010006,0.00169297,59135.0,59131.0,2.011]
[1724798010241,0.00069297,59135.0,59131.0,2.0]
[1724798010907,0.00069297,59135.0,59133.0,0.014]
[1724798010908,0.00169297,59135.0,59133.0,0.014]
[1724798011180,0.00069297,59135.0,59131.0,2.0]
[1724798011408,0.00069297,59135.0,59131.0,2.014]
[1724798011409,0.00669297,59135.0,59131.0,2.014]
[1724798011639,0.1802,59134.0,59131.0,2.0]
[1724798011858,0.1852,59134.0,59133.0,0.007]
[1724798012300,0.1852,59134.0,59131.0,2.014]
[1724798012301,0.3887,59132.0,59131.0,2.014]
[1724798012537,0.005,59132.0,59131.0,1.30710019]
[1724798012752,0.336133,59132.0,59131.0,1.30710019]
[1724798012966,1.012585,59132.0,59131.0,1.17179488]
[1724798013189,0.674359,59132.0,59131.0,1.17179488]
[1724798013413,0.005,59104.0,59063.0,1.5]
[1724798013633,0.005,59104.0,59075.0,0.3983]
[1724798013848,0.028,59104.0,59075.0,0.3983]
[1724798014513,0.028,59104.0,59073.0,0.4007]
[1724798014975,0.036,59104.0,59103.0,0.001816]
[1724798015195,0.013,59104.0,59103.0,0.001816]
[1724798015427,0.03450338,59104.0,59103.0,0.001816]
[1724798015645,0.008,59104.0,59103.0,0.001816]
[1724798016076,0.013,59104.0,59103.0,0.001816]
[1724798016301,0.027,59104.0,59103.0,0.001816]
[1724798016512,0.019,59104.0,59103.0,0.000816]
[1724798016731,0.033,59104.0,59103.0,0.000816]
[1724798016950,0.019,59104.0,59103.0,0.000816]
[1724798017182,0.014,59104.0,59103.0,0.000816]
[1724798017416,0.015,59104.0,59103.0,0.000816]
[1724798017644,0.015,59104.0,59103.0,0.401516]
[1724798017645,0.014,59104.0,59103.0,0.401516]
[1724798017863,0.001,59104.0,59103.0,0.000816]
[1724798018099,0.005,59104.0,59103.0,0.000816]
[1724798018318,0.004,59104.0,59103.0,0.000816]
[1724798018564,0.005,59106.0,59103.0,0.000816]
[1724798018779,0.465336,59128.0,59103.0,0.000816]
[1724798018780,0.005,59104.0,59103.0,0.000816]
[1724798019507,0.006,59104.0,59103.0,0.000816]
[1724798019969,0.028,59104.0,59103.0,0.000816]
[1724798020209,0.029,59104.0,59103.0,0.000816]
[1724798020640,0.005,59104.0,59103.0,0.000816]
[1724798020856,0.006,59104.0,59103.0,0.000816]
[1724798021071,0.008,59104.0,59103.0,0.000816]
[1724798021298,0.031,59104.0,59103.0,0.000816]
[1724798021532,0.032,59104.0,59103.0,0.000816]
[1724798021750,0.009,59104.0,59103.0,0.000816]
[1724798021965,0.014,59104.0,59103.0,0.000816]
[1724798022438,0.037,59104.0,59103.0,0.000816]
[1724798022708,0.502336,59104.0,59103.0,0.000816]
[1724798022916,0.65121964,59104.0,59103.0,0.000816]
[1724798023138,0.65121964,59104.0,59103.0,0.003816]
[1724798023351,0.65121964,59104.0,59103.0,0.000816]
[1724798023564,0.64621964,59104.0,59103.0,0.000816]
[1724798023783,0.64921964,59104.0,59103.0,0.000816]
[1724798024043,0.65793129,59104.0,59103.0,0.000816]
[1724798024249,0.65793129,59104.0,59103.0,4.789e-05]
[1724798024924,0.15371165,59104.0,59103.0,4.789e-05]
[1724798025433,0.008,59104.0,59103.0,4.789e-05]
[1724798025644,0.108,59104.0,59103.0,4.789e-05]
[1724798025883,0.119,59104.0,59103.0,4.789e-05]
[1724798026130,0.598336,59104.0,59103.0,4.789e-05]
[1724798026340,0.105,59104.0,59103.0,4.789e-05]
[1724798026562,0.019,59104.0,59103.0,4.789e-05]
[1724798026806,0.021,59104.0,59103.0,4.789e-05]
[1724798027221,0.026,59104.0,59103.0,4.789e-05]
[1724798027867,0.02,59104.0,59103.0,4.789e-05]
[1724798028295,0.034,59104.0,59103.0,4.789e-05]
[1724798028757,0.043,59104.0,59103.0,4.789e-05]
[1724798028961,0.055,59104.0,59103.0,4.789e-05]
[1724798029190,0.505336,59104.0,59103.0,4.789e-05]
[1724798029404,0.505336,59104.0,59103.0,0.00204789]
[1724798029405,0.55824173,59104.0,59103.0,0.00204789]
[1724798029609,0.64624173,59104.0,59103.0,0.00204789]
[1724798029822,0.65924173,59104.0,59103.0,0.00204789]
[1724798030298,0.65924173,59104.0,59103.0,4.789e-05]
[1724798030299,0.65824173,59104.0,59103.0,4.789e-05]
[1724798030757,0.66324173,59104.0,59103.0,4.789e-05]
[1724798030993,0.65824173,59104.0,59103.0,4.789e-05]
[1724798031261,0.64524173,59104.0,59083.0,0.50540786]
[1724798031493,0.18802417,59103.0,59083.0,0.50540786]
[1724798031984,0.005,59090.0,59084.0,0.00338483]
[1724798032225,0.00872135,59108.0,59084.0,0.39998483]
[1724798032226,0.005,59097.0,59084.0,0.39998483]
[1724798032451,0.014,59104.0,59084.0,0.39998483]
[1724798032452,0.005,59101.0,59085.0,0.1965]
[1724798032694,0.005,59101.0,59086.0,0.00338384]
[1724798032931,0.005,59101.0,59085.0,1.73649848]
[1724798033181,0.005,59101.0,59032.0,0.169397]
[1724798033182,0.014,59103.0,59071.0,0.3896]
[1724798033183,0.005,59076.0,59071.0,0.3896]
[1724798033440,0.465336,59091.0,59071.0,0.3896]
[1724798033441,0.005,59081.0,59075.0,0.50540786]
[1724798033685,0.014,59103.0,59071.0,0.3896]
[1724798033686,0.005,59077.0,59071.0,0.3896]
[1724798033931,0.005,59076.0,59071.0,0.3896]
[1724798034634,0.005,59077.0,59071.0,0.3896]
[1724798034871,0.02650943,59083.0,59071.0,0.3896]
[1724798034872,0.005,59078.0,59071.0,0.3896]
[1724798035117,0.1,59091.0,59071.0,0.3896]
[1724798035118,0.005,59082.0,59072.0,0.00338524]
[1724798035365,0.005,59080.0,59071.0,0.3896]
[1724798035846,0.005,59073.0,59071.0,0.001]
[1724798036065,0.006,59076.0,59075.0,0.001]
[1724798036288,0.005,59076.0,59075.0,0.001]
[1724798036767,0.005,59076.0,59071.0,0.001]
[1724798037033,0.005,59078.0,59071.0,0.00538545]
[1724798037250,0.002,59080.0,59071.0,0.00538545]
[1724798037482,0.001,59080.0,59071.0,0.00438545]
[1724798037724,0.005,59078.0,59071.0,0.00438545]
[1724798037960,0.005,59078.0,59066.0,0.00338514]
[1724798038473,0.005,59078.0,59065.0,0.3759]
[1724798038474,0.001,59076.0,59065.0,0.3759]
[1724798038698,0.001,59076.0,59075.0,0.001]
[1724798039421,0.005,59073.0,59065.0,0.3759]
[1724798039675,0.005,59073.0,59066.0,0.001]
[1724798039912,0.005,59073.0,59065.0,0.3759]
[1724798041120,0.005,59066.0,59059.0,0.1889]
[1724798041349,0.005,59066.0,59047.0,0.000817]
[1724798041350,0.005,59066.0,59061.0,0.50540786]
[1724798041573,0.005,59066.0,59051.0,0.5938]
[1724798041803,0.005,59088.0,59058.0,0.1892]
[1724798042034,0.04911501,59104.0,59052.0,0.23122644]
[1724798042035,0.001,59073.0,59061.0,0.3885]
[1724798042296,0.005,59100.0,59063.0,0.3885]
[1724798042543,0.006786,59102.0,59050.0,0.465336]
[1724798042544,0.50540786,59091.0,59067.0,0.3885]
[1724798042779,0.50540786,59091.0,59066.0,0.1858]
[1724798042780,0.001,59073.0,59069.0,0.4034]
[1724798043004,0.001,59073.0,59070.0,0.00338453]
[1724798043272,0.005,59087.0,59070.0,1.5]
[1724798043494,0.005,59087.0,59069.0,0.4034]
[1724798043495,0.005,59077.0,59069.0,0.4034]
[1724798043723,0.001,59090.0,59069.0,0.4034]
[1724798043724,0.005,59075.0,59069.0,0.40312179]
[1724798043939,0.005,59065.0,59060.0,0.1901]
[1724798044174,0.0012,59086.0,59015.0,0.000817]
[1724798044175,0.005,59062.0,59019.0,0.465336]
[1724798044436,0.001,59073.0,59015.0,0.000817]
[1724798044437,0.005,59056.0,59048.0,0.187]
[1724798044685,0.001,59066.0,59023.0,0.50540786]
[1724798044686,0.005,59050.0,59035.0,0.187]
[1724798044957,0.02651778,59064.0,59035.0,0.187]
[1724798044958,0.005,59053.0,59035.0,0.187]
[1724798045211,0.005,59057.0,59035.0,0.187]
[1724798045436,0.005,59057.0,59036.0,0.00338637]
[1724798045663,0.005,59057.0,59035.0,0.187]
[1724798046401,0.005,59061.0,59048.0,0.00338636]
[1724798046630,0.005,59060.0,59049.0,0.187]
[1724798046858,0.004,59057.0,59051.0,0.3853]
[1724798047114,0.004,59057.0,59052.0,0.00338622]
[1724798047353,0.004,59057.0,59044.0,0.00752336]
[1724798047354,0.005,59085.0,59054.0,0.3853]
[1724798047578,0.50540786,59084.0,59062.0,0.00020364]
[1724798047802,0.188,59099.0,59063.0,0.3833]
[1724798047803,0.00479636,59087.0,59063.0,0.3833]
[1724798048026,0.188,59099.0,59065.0,0.3833]
[1724798048027,0.00479636,59083.0,59065.0,0.3833]
[1724798048261,0.00479636,59076.0,59065.0,0.3833]
[1724798048812,0.00479636,59068.0,59065.0,0.3833]
[1724798049066,0.00479636,59068.0,59047.0,0.100817]
[1724798049067,0.00479636,59067.0,59048.0,0.3963]
[1724798049289,0.00479636,59067.0,59055.0,0.50540786]
[1724798049509,0.1,59075.0,59049.0,0.0497117]
[1724798049510,0.00479636,59061.0,59049.0,0.0497117]
[1724798049762,0.00479636,59056.0,59048.0,0.3963]
[1724798050724,0.002,59067.0,59047.0,0.000817]
[1724798050725,0.00479636,59048.0,59047.0,0.000817]
[1724798051198,0.03299636,59048.0,59047.0,0.000817]
[1724798051456,0.06290911,59048.0,59047.0,0.000817]
[1724798051703,0.11573362,59048.0,59047.0,0.000817]
[1724798051929,0.21573362,59048.0,59047.0,0.000817]
[1724798052417,0.16290911,59048.0,59047.0,0.000817]
[1724798052660,0.17552275,59048.0,59047.0,0.002817]
[1724798052894,0.14552275,59048.0,59047.0,0.001817]
[1724798053112,0.17152275,59048.0,59047.0,0.001817]
[1724798053331,0.08867503,59048.0,59047.0,0.000817]
[1724798053566,0.17490911,59048.0,59047.0,0.000817]
[1724798054735,0.17490911,59048.0,59047.0,0.002817]
[1724798054736,0.19190911,59048.0,59047.0,0.002817]
[1724798054978,0.19190911,59048.0,59015.0,0.000817]
[1724798054979,0.00799636,59045.0,59044.0,0.00677816]
[1724798055252,0.01638272,59045.0,59044.0,0.00677816]
[1724798055504,0.01638272,59045.0,59044.0,0.00157816]
[1724798055505,0.28605579,59045.0,59044.0,0.00157816]
[1724798055753,0.13969379,59045.0,59044.0,0.00157816]
[1724798055975,0.16501636,59045.0,59044.0,0.00157816]
[1724798056214,0.16501636,59045.0,59044.0,0.00257816]
[1724798056215,0.32528272,59045.0,59044.0,0.00257816]
[1724798056466,0.01318272,59045.0,59044.0,0.00257816]
[1724798056705,0.01518272,59045.0,59044.0,0.00357816]
[1724798056945,0.01179636,59045.0,59044.0,0.00357816]
[1724798057163,0.01518272,59045.0,59044.0,0.00357816]
[1724798057420,0.01518272,59045.0,59015.0,0.000817]
[1724798057421,0.01518272,59045.0,59043.0,0.00043747]
[1724798057422,0.00279636,59044.0,59043.0,0.00043747]
[1724798057703,0.00779636,59044.0,59043.0,0.00043747]
[1724798057937,0.02579636,59044.0,59043.0,0.00043747]
[1724798058155,0.00279636,59044.0,59043.0,0.00043747]
[1724798058871,0.03079636,59044.0,59043.0,0.00043747]
[1724798059117,0.01679636,59044.0,59043.0,0.00043747]
[1724798059367,0.00279636,59044.0,59043.0,0.00043747]
[1724798059598,0.03418272,59044.0,59043.0,0.00043747]
[1724798059840,0.04318272,59044.0,59043.0,0.00043747]
[1724798060532,0.10039289,59044.0,59043.0,0.00043747]
[1724798060992,0.00279636,59016.0,59015.0,0.385017]
[1724798061492,0.00279636,59016.0,59015.0,0.000817]
[1724798062170,0.00379636,59016.0,59015.0,0.000817]
[1724798062611,0.02679636,59016.0,59015.0,0.000817]
[1724798063054,0.00279636,59016.0,59015.0,0.000817]
[1724798063488,0.10852804,59024.0,59015.0,0.000817]
[1724798063489,0.00279636,59019.0,59015.0,0.000817]
[1724798063724,0.00279636,59017.0,59015.0,0.394517]
[1724798063929,0.00279636,59016.0,59015.0,0.394517]
[1724798064141,0.00279636,59016.0,59015.0,0.000817]
[1724798064357,0.01579636,59016.0,59015.0,0.000817]
[1724798064779,0.03879636,59016.0,59015.0,0.000817]
[1724798064989,0.02579636,59016.0,59015.0,0.000817]
[1724798065205,0.00679636,59016.0,59015.0,0.000817]
[1724798065426,0.02979636,59016.0,59015.0,0.000817]
[1724798065656,0.05633618,59016.0,59015.0,0.000817]
[1724798066107,0.02979636,59016.0,59015.0,0.000817]
[1724798066576,0.00679636,59016.0,59015.0,0.000817]
[1724798067121,0.02979636,59016.0,59015.0,0.000817]
[1724798067378,0.20999636,59016.0,59015.0,0.000817]
[1724798067608,0.20999636,59016.0,59001.0,0.3978]
[1724798067609,0.00279636,59006.0,59001.0,0.3978]
[1724798067906,0.00279636,59006.0,58976.0,1.5]
[1724798067907,0.00279636,59006.0,58992.0,0.3848]
[1724798069232,0.00779636,59006.0,58993.0,0.50879795]
[1724798069700,0.00779636,59006.0,59005.0,0.39247]
[1724798069950,0.005,59006.0,59005.0,0.39247]
[1724798070210,0.005,59006.0,59005.0,0.57857]
[1724798070430,0.00279636,59010.0,59005.0,0.57857]
[1724798070905,0.023,59006.0,59005.0,0.57857]
[1724798071136,0.014,59006.0,59005.0,0.57857]
[1724798071356,0.001,59006.0,59005.0,0.57857]
[1724798071604,0.00338636,59035.0,59005.0,0.57857]
[1724798071605,0.00279636,59010.0,59005.0,0.57857]
[1724798071859,0.465336,59030.0,59005.0,0.39247]
[1724798071860,0.00279636,59006.0,59005.0,0.39247]
[1724798072413,0.001,59006.0,59005.0,0.39247]
[1724798073398,0.001,59006.0,59005.0,0.57637]
[1724798073631,0.00279636,59022.0,59006.0,0.4095]
[1724798073860,0.00279636,59022.0,59005.0,0.19207]
[1724798073861,0.00279636,59022.0,59008.0,0.4095]
[1724798074092,0.00279636,59017.0,59008.0,0.4085]
[1724798074314,0.19308636,59043.0,59008.0,0.4085]
[1724798074315,0.00279636,59013.0,59008.0,0.4085]
[1724798074536,0.001,59035.0,59008.0,0.4085]
[1724798074537,0.00279636,59022.0,59008.0,0.4085]
[1724798074777,0.00279636,59022.0,59009.0,0.06244533]
[1724798074993,0.00279636,59020.0,59005.0,0.19207]
[1724798075214,0.02653609,59028.0,59005.0,0.19207]
[1724798075215,0.00279636,59019.0,59005.0,0.19207]
[1724798075425,0.02653609,59028.0,59005.0,0.19207]
[1724798075426,0.00279636,59013.0,59005.0,0.19207]
[1724798075896,0.00279636,59010.0,59005.0,0.19207]
[1724798076326,0.00279636,59007.0,59005.0,0.19207]
[1724798076550,0.00279636,59007.0,59005.0,0.00817]
[1724798076781,0.00279636,59006.0,59005.0,0.00817]
[1724798078131,0.00618272,59006.0,59005.0,0.00817]
[1724798078333,0.001,59010.0,59006.0,0.3948]
[1724798078548,0.00279636,59007.0,59006.0,0.3948]
[1724798078761,0.00279636,59007.0,59005.0,0.00817]
[1724798078968,0.00279636,59008.0,59005.0,0.00817]
[1724798079192,0.00279636,59014.0,59007.0,0.1976]
[1724798079402,0.00279636,59012.0,59007.0,0.1946]
[1724798079614,0.00338636,59031.0,59007.0,0.1946]
[1724798079615,0.00279636,59010.0,59007.0,0.1946]
[1724798079843,0.00279636,59010.0,59007.0,0.1926]
[1724798080500,0.00338636,59024.0,59005.0,0.00817]
[1724798080501,0.00279636,59006.0,59005.0,0.00817]
[1724798081813,0.00279636,59006.0,59005.0,0.38547]
[1724798082021,0.00279636,59006.0,59005.0,0.01017]
[1724798082022,0.00579636,59006.0,59005.0,0.01017]
[1724798082478,0.00479636,59006.0,59005.0,0.00817]
[1724798082702,0.02879636,59006.0,59005.0,0.01017]
[1724798082954,0.04379636,59006.0,59005.0,0.01017]
[1724798083168,0.04279636,59006.0,59005.0,0.00817]
[1724798083363,0.04418272,59006.0,59005.0,0.00817]
[1724798084474,0.04418272,59006.0,58987.0,0.51357786]
[1724798084475,0.23438272,59006.0,58987.0,0.51357786]
[1724798084681,0.00279636,58988.0,58987.0,0.56493565]
[1724798084916,0.00279636,58988.0,58987.0,0.51357786]
[1724798085129,0.00279636,58988.0,58987.0,0.00817]
[1724798086635,0.00279636,58990.0,58987.0,0.00817]
[1724798086849,0.00279636,58989.0,58988.0,0.4114]
[1724798087286,0.00279636,58988.0,58987.0,0.00817]
[1724798087534,0.00338636,58999.0,58987.0,0.00817]
[1724798087535,0.00279636,58990.0,58987.0,0.00817]
[1724798087749,0.00279636,58993.0,58988.0,0.41289]
[1724798087976,0.00279636,58996.0,58989.0,0.042106]
[1724798088283,0.001,59006.0,58989.0,0.042106]
[1724798088284,0.00279636,58998.0,58990.0,0.18378977]
[1724798088531,0.001,59006.0,58990.0,0.18378977]
[1724798088532,0.00279636,59003.0,58991.0,0.4095]
[1724798088778,0.00279636,58996.0,58991.0,0.4095]
[1724798089006,0.001,59006.0,58991.0,0.4095]
[1724798089007,0.00279636,59003.0,58991.0,0.3839]
[1724798089736,0.001,59006.0,58991.0,0.3839]
[1724798089737,0.00279636,58992.0,58991.0,0.3839]
[1724798090419,0.00438636,59006.0,58987.0,0.00817]
[1724798090420,0.00279636,58988.0,58987.0,0.00817]
[1724798093435,0.115,59002.0,58987.0,0.00817]
[1724798093436,0.00279636,58992.0,58987.0,0.00817]
[1724798093662,0.00279636,58989.0,58987.0,0.00817]
[1724798094096,0.00338636,59001.0,58987.0,0.00817]
[1724798094097,0.00279636,58988.0,58987.0,0.00817]
[1724798094320,0.00338636,59001.0,58987.0,0.00817]
[1724798094321,0.00279636,58991.0,58987.0,0.00817]
[1724798094597,0.00338636,59001.0,58987.0,0.00817]
[1724798094598,0.00279636,58990.0,58987.0,0.00817]
[1724798094797,0.13057,59002.0,58988.0,0.3998]
[1724798094798,0.00279636,58989.0,58988.0,0.3998]
[1724798095012,0.00279636,58992.0,58988.0,0.440597]
[1724798095260,0.02654772,58995.0,58988.0,0.3998]
[1724798095261,0.00279636,58989.0,58988.0,0.3998]
[1724798095496,0.02654772,58995.0,58988.0,0.3998]
[1724798095497,0.00279636,58992.0,58988.0,0.3998]
[1724798095961,0.00279636,58989.0,58988.0,0.3998]
[1724798096835,0.00279636,58989.0,58988.0,0.400619]
[1724798097062,0.00279636,58992.0,58988.0,0.400619]
[1724798097284,0.00279636,58992.0,58988.0,0.4414979]
[1724798097521,0.00279636,58989.0,58988.0,0.400619]
[1724798097997,0.00279636,58989.0,58988.0,0.000819]
[1724798099651,0.00338636,59002.0,58988.0,0.000819]
[1724798099652,0.00279636,58992.0,58988.0,0.000819]
[1724798099904,0.00279636,58996.0,58988.0,0.000819]